bitfinex/quotes_SOLUSD_20241210
["timestamp","ask_amount","ask_price","bid_price","bid_amount"]
[1733812778180,20.0,218.5,218.43,23.776884]
[1733812778500,0.82541502,218.49,218.4,23.776884]
[1733812778684,0.82541502,218.49,218.39,8.91616594]
[1733812779572,0.82541502,218.49,218.39,8.22954627]
[1733812779975,0.82541502,218.49,218.4,23.776884]
[1733812780180,20.0,218.5,218.42,23.776884]
[1733812780375,0.82541502,218.52,218.42,23.776884]
[1733812780572,0.82541502,218.52,218.42,335.776884]
[1733812781401,1.5482,218.49,218.37,8.22954627]
[1733812781599,0.82541502,218.48,218.38,0.68668411]
[1733812782104,0.82541502,218.48,218.37,0.68672705]
[1733812782293,0.82541502,218.48,218.34,8.22954627]
[1733812782631,0.82541502,218.48,218.35,0.68678315]
[1733812783806,0.82541502,218.48,218.38,8.22954627]
[1733812784113,0.82541502,218.48,218.39,0.68665501]
[1733812784287,1.5482,218.49,218.39,0.68665501]
[1733812784602,1.5482,218.49,218.42,23.776884]
[1733812784813,1.5482,218.49,218.44,23.776884]
[1733812785897,1.5482,218.49,218.46,23.776884]
[1733812786277,1.5482,218.49,218.48,23.776884]
[1733812786712,1.5482,218.49,218.43,8.22954627]
[1733812787010,1.5482,218.49,218.43,23.776884]
[1733812787415,1.5482,218.49,218.42,23.776884]
[1733812787887,1.5482,218.49,218.42,312.0]
[1733812790289,0.82541502,218.48,218.42,312.0]
[1733812791317,0.82541502,218.48,218.34,8.22954627]
[1733812792318,0.82541502,218.48,218.32,0.68679234]
[1733812792319,20.0,218.44,218.32,0.68679234]
[1733812792496,20.0,218.44,218.3,8.22954627]
[1733812792497,0.82541502,218.43,218.31,0.68688877]
[1733812792901,0.82541502,218.43,218.31,8.91643504]
[1733812793507,0.82541502,218.43,218.32,23.776884]
[1733812794334,0.82541502,218.43,218.32,335.776884]
[1733812794913,1.5669,218.42,218.27,8.22954627]
[1733812795234,6.96091502,218.41,218.3,8.22954627]
[1733812795527,6.96091502,218.41,218.31,0.68686925]
[1733812796110,6.96091502,218.41,218.31,8.91641552]
[1733812796313,6.1355,218.41,218.32,23.776884]
[1733812796520,6.1355,218.41,218.34,23.776884]
[1733812797709,6.1355,218.41,218.36,23.776884]
[1733812797910,6.1355,218.41,218.36,335.776884]
[1733812799133,6.1355,218.41,218.36,312.0]
[1733812799339,0.82541502,218.4,218.3,8.22954627]
[1733812799537,0.82541502,218.4,218.31,0.68689451]
[1733812800309,6.1355,218.41,218.31,0.68689451]
[1733812801545,6.1355,218.41,218.32,32.00643027]
[1733812801725,6.1355,218.41,218.34,23.776884]
[1733812802208,6.1355,218.41,218.34,335.776884]
[1733812802942,0.82541502,218.4,218.24,20.0]
[1733812803119,0.82541502,218.4,218.26,8.22954627]
[1733812803320,0.82541502,218.4,218.27,0.68700438]
[1733812803728,1.5535,218.37,218.27,0.68700438]
[1733812803916,0.82541502,218.36,218.27,0.68700438]
[1733812804321,0.82541502,218.36,218.28,0.6870176]
[1733812805037,1.5535,218.37,218.28,0.6870176]
[1733812805817,1.5535,218.37,218.29,23.776884]
[1733812806020,0.82541502,218.36,218.22,20.68694419]
[1733812806234,0.82541502,218.36,218.25,8.22954627]
[1733812806427,0.82541502,218.36,218.26,0.68705113]
[1733812806831,2.37891502,218.37,218.26,8.9165974]
[1733812807136,1.5535,218.37,218.31,8.22954627]
[1733812807442,1.5535,218.37,218.32,0.68684089]
[1733812808040,1.5535,218.37,218.33,23.776884]
[1733812808339,1.5535,218.37,218.33,32.00643027]
[1733812808935,1.5535,218.37,218.35,312.0]
[1733812809443,1.5535,218.43,218.36,32.69324317]
[1733812809622,1.5535,218.43,218.38,23.776884]
[1733812810246,1.5535,218.43,218.37,23.776884]
[1733812810443,1.5535,218.43,218.39,23.776884]
[1733812810642,0.82541502,218.54,218.41,23.776884]
[1733812810643,1.5535,218.49,218.41,23.776884]
[1733812811946,1.5535,218.49,218.42,0.68657257]
[1733812812121,1.5535,218.49,218.43,23.776884]
[1733812812322,1.508,218.55,218.47,23.776884]
[1733812812522,1.508,218.55,218.47,335.776884]
[1733812813029,0.82541502,218.54,218.47,335.776884]
[1733812813215,2.33341502,218.55,218.47,335.776884]
[1733812813550,1.508,218.55,218.47,335.776884]
[1733812813849,1.508,218.55,218.49,23.776884]
[1733812815435,1.508,218.55,218.48,23.776884]
[1733812816754,1.508,218.55,218.5,23.776884]
[1733812817436,1.508,218.55,218.48,23.776884]
[1733812818430,1.508,218.55,218.5,23.776884]
[1733812819027,1.508,218.55,218.49,23.776884]
[1733812820240,1.508,218.55,218.48,0.68635344]
[1733812820241,1.508,218.55,218.51,23.776884]
[1733812820663,0.82541502,218.54,218.43,8.22954627]
[1733812820953,20.82541502,218.54,218.42,8.22954627]
[1733812821253,20.82541502,218.54,218.4,8.22954627]
[1733812821459,20.82541502,218.54,218.39,8.22954627]
[1733812821635,20.82541502,218.54,218.4,8.91613698]
[1733812822674,20.82541502,218.54,218.41,23.776884]
[1733812823650,20.82541502,218.54,218.42,23.776884]
[1733812824455,20.0,218.54,218.44,8.22954627]
[1733812824774,1.508,218.55,218.47,23.776884]
[1733812825078,1.508,218.55,218.49,23.776884]
[1733812826073,1.508,218.55,218.51,23.776884]
[1733812826483,1.5897,218.61,218.53,23.776884]
[1733812826858,2.41511502,218.61,218.53,23.776884]
[1733812827556,2.41511502,218.61,218.53,335.776884]
[1733812829264,2.41511502,218.61,218.53,312.0]
[1733812829465,2.41511502,218.61,218.51,20.0]
[1733812829665,2.41511502,218.61,218.52,23.776884]
[1733812829866,20.0,218.59,218.49,24.4632072]
[1733812830062,0.82541502,218.58,218.49,24.4632072]
[1733812830658,20.0,218.59,218.49,32.69275347]
[1733812832056,0.82541502,218.58,218.49,32.69275347]
[1733812832569,0.82541502,218.58,218.49,344.69275347]
[1733812832769,2.41511502,218.61,218.49,344.00643027]
[1733812832984,20.0,218.59,218.49,344.00643027]
[1733812833187,20.0,218.59,218.51,23.776884]
[1733812833399,2.41511502,218.61,218.53,23.776884]
[1733812833696,1.5897,218.61,218.53,23.776884]
[1733812834058,2.41511502,218.61,218.53,23.776884]
[1733812834464,1.5897,218.61,218.53,23.776884]
[1733812834678,2.41511502,218.61,218.53,23.776884]
[1733812834878,2.41511502,218.61,218.49,8.22954627]
[1733812835084,2.41511502,218.61,218.5,23.776884]
[1733812835983,20.0,218.59,218.5,23.776884]
[1733812836288,0.82541502,218.58,218.5,335.776884]
[1733812836872,0.82541502,218.58,218.48,8.22954627]
[1733812838377,0.82541502,218.58,218.48,23.776884]
[1733812838570,0.82541502,218.58,218.47,23.776884]
[1733812839095,0.82541502,218.58,218.49,23.776884]
[1733812839788,0.82541502,218.58,218.49,335.776884]
[1733812840299,0.82541502,218.58,218.44,20.0]
[1733812840481,0.82541502,218.58,218.43,8.22954627]
[1733812840666,1.5897,218.57,218.42,0.68649513]
[1733812840988,20.82541502,218.56,218.42,0.68649513]
[1733812841880,20.82541502,218.56,218.44,20.0]
[1733812842100,6.5362,218.55,218.45,23.776884]
[1733812842387,0.82541502,218.54,218.45,23.776884]
[1733812842568,6.5362,218.55,218.47,23.776884]
[1733812842964,7.36161502,218.55,218.47,23.776884]
[1733812843197,6.5362,218.55,218.47,335.776884]
[1733812844385,7.36161502,218.55,218.47,335.776884]
[1733812845574,6.5362,218.55,218.47,335.776884]
[1733812845771,7.36161502,218.55,218.47,335.776884]
[1733812845997,6.5362,218.55,218.47,335.776884]
[1733812846178,7.36161502,218.55,218.47,335.776884]
[1733812848100,7.36161502,218.55,218.47,312.0]
[1733812848303,7.36161502,218.55,218.42,8.22954627]
[1733812848466,20.0,218.52,218.41,8.22954627]
[1733812848669,1.519,218.5,218.38,8.22954627]
[1733812848865,0.82541502,218.49,218.37,8.91610744]
[1733812849675,0.82541502,218.49,218.39,8.22954627]
[1733812850596,1.519,218.5,218.42,23.776884]
[1733812850800,2.34441502,218.5,218.4,32.69309849]
[1733812851298,2.34441502,218.5,218.4,344.69309849]
[1733812851487,2.34441502,218.5,218.4,344.00643027]
[1733812851800,1.519,218.5,218.4,32.00643027]
[1733812851990,1.519,218.5,218.42,32.00643027]
[1733812852489,1.519,218.5,218.44,23.776884]
[1733812853399,1.519,218.5,218.44,32.00643027]
[1733812853694,1.519,218.5,218.46,32.00643027]
[1733812853894,1.519,218.5,218.48,23.776884]
[1733812854696,1.519,218.5,218.48,335.776884]
[1733812855673,6.5362,218.55,218.49,0.68639545]
[1733812855879,1.519,218.57,218.52,23.776884]
[1733812856078,1.519,218.57,218.53,8.22954627]
[1733812856279,1.519,218.62,218.55,23.776884]
[1733812856578,1.519,218.62,218.57,32.00643027]
[1733812856783,1.519,218.62,218.59,23.776884]
[1733812857802,1.519,218.62,218.59,32.00643027]
[1733812858004,6.5362,218.66,218.61,23.776884]
[1733812858796,6.5362,218.66,218.61,335.776884]
[1733812859599,1.519,218.67,218.61,335.776884]
[1733812861024,1.519,218.67,218.61,312.0]
[1733812861916,1.519,218.67,218.57,23.776884]
[1733812862225,1.519,218.67,218.57,24.46296835]
[1733812862429,1.519,218.67,218.5,0.68607632]
[1733812862430,0.82541502,218.66,218.5,0.68607632]
[1733812862631,0.82541502,218.66,218.52,8.22954627]
[1733812862919,0.82541502,218.66,218.53,0.68621382]
[1733812863700,6.5362,218.65,218.48,0.68623536]
[1733812863901,20.0,218.62,218.48,0.68623536]
[1733812864105,0.82541502,218.61,218.46,0.68638576]
[1733812864321,1.519,218.6,218.43,0.68641555]
[1733812864625,20.0,218.56,218.41,0.68650342]
[1733812864825,20.82541502,218.55,218.43,312.0]
[1733812865123,1.519,218.54,218.37,8.22954627]
[1733812865422,20.0,218.51,218.36,13.12986658]
[1733812865631,20.0,218.47,218.36,13.12986658]
[1733812865807,20.0,218.47,218.37,0.68677657]
[1733812866004,6.5362,218.5,218.39,8.22954627]
[1733812866207,0.82541502,218.49,218.4,0.68660126]
[1733812867124,6.5362,218.5,218.4,0.68660126]
[1733812867512,6.5362,218.5,218.41,23.776884]
[1733812867835,6.5362,218.5,218.43,23.776884]
[1733812868004,6.5362,218.5,218.43,335.776884]
[1733812870028,0.82541502,218.49,218.43,312.0]
[1733812870345,0.82541502,218.49,218.36,12.44320243]
[1733812870505,0.82541502,218.49,218.37,0.68668792]
[1733812870704,0.82541502,218.49,218.36,12.44320243]
[1733812872609,1.5152,218.46,218.36,12.44320243]
[1733812872809,0.82541502,218.45,218.36,12.44320243]
[1733812873142,0.82541502,218.45,218.36,324.44320243]
[1733812873508,2.34061502,218.46,218.37,0.68679744]
[1733812874240,2.34061502,218.46,218.36,12.44320243]
[1733812875146,1.5152,218.46,218.38,23.776884]
[1733812875453,1.5152,218.46,218.4,23.776884]
[1733812875736,1.5152,218.46,218.42,23.776884]
[1733812876108,6.5362,218.5,218.42,23.776884]
[1733812876109,6.5362,218.5,218.44,23.776884]
[1733812876544,1.5152,218.51,218.44,23.776884]
[1733812876722,1.5152,218.51,218.46,23.776884]
[1733812877225,1.5152,218.51,218.46,0.68639397]
[1733812877432,1.5152,218.51,218.43,23.776884]
[1733812877625,1.5152,218.51,218.44,23.776884]
[1733812877827,1.5152,218.51,218.45,0.68649635]
[1733812878032,1.5152,218.51,218.46,23.776884]
[1733812878341,1.5152,218.51,218.48,23.776884]
[1733812880299,6.6104,218.55,218.48,335.776884]
[1733812881228,6.6104,218.55,218.47,23.776884]
[1733812881646,6.6104,218.55,218.46,23.776884]
[1733812881647,0.82541502,218.54,218.46,23.776884]
[1733812881843,0.82541502,218.54,218.45,23.776884]
[1733812883247,6.6104,218.55,218.47,23.776884]
[1733812883825,0.82541502,218.54,218.47,23.776884]
[1733812884248,0.82541502,218.54,218.46,312.0]
[1733812884433,0.82541502,218.54,218.46,23.776884]
[1733812884835,0.82541502,218.54,218.42,8.22954627]
[1733812885034,0.82541502,218.54,218.43,24.46339788]
[1733812885632,0.82541502,218.54,218.4,8.22954627]
[1733812885839,0.82541502,218.54,218.41,0.68658422]
[1733812886357,20.0,218.52,218.41,0.68658422]
[1733812886653,0.82541502,218.51,218.41,0.68658422]
[1733812886855,0.82541502,218.51,218.41,23.776884]
[1733812887034,0.82541502,218.51,218.4,0.68658669]
[1733812887367,0.82541502,218.51,218.41,312.0]
[1733812887830,0.82541502,218.51,218.42,0.68661713]
[1733812888850,20.0,218.52,218.42,0.68661713]
[1733812889049,0.82541502,218.51,218.42,0.68661713]
[1733812891035,1.6271,218.5,218.38,23.776884]
[1733812891235,1.6271,218.5,218.36,20.6727487]
[1733812891236,0.82541502,218.49,218.36,12.44320243]
[1733812891753,0.82541502,218.49,218.37,0.68674255]
[1733812892143,0.82541502,218.49,218.37,312.68674255]
[1733812892356,0.82541502,218.49,218.37,312.0]
[1733812892558,0.82541502,218.49,218.37,8.22954627]
[1733812892857,1.6271,218.5,218.38,8.22954627]
[1733812893029,1.6271,218.5,218.39,24.46346088]
[1733812893234,0.82541502,218.49,218.39,24.46346088]
[1733812894263,0.82541502,218.49,218.39,0.68657688]
[1733812894459,0.82541502,218.49,218.38,0.68665871]
[1733812894952,0.82541502,218.49,218.36,12.44320243]
[1733812895335,0.82541502,218.49,218.37,0.68677494]
[1733812895542,0.82541502,218.49,218.38,312.0]
[1733812896942,0.82541502,218.49,218.39,0.68671471]
[1733812897657,1.6271,218.5,218.39,0.68671471]
[1733812898373,1.6271,218.5,218.4,23.776884]
[1733812898538,1.6271,218.5,218.41,0.6865467]
[1733812900257,1.6271,218.5,218.42,312.0]
[1733812900659,0.82541502,218.49,218.42,312.0]
[1733812902277,0.82541502,218.49,218.37,8.22954627]
[1733812902475,0.82541502,218.49,218.37,24.46358211]
[1733812902808,6.5911,218.48,218.36,12.44320243]
[1733812902954,0.82541502,218.47,218.36,12.44320243]
[1733812905291,0.82541502,218.47,218.37,312.0]
[1733812907185,1.6094,218.44,218.36,12.44320243]
[1733812907392,0.82541502,218.43,218.36,12.44320243]
[1733812916177,6.5911,218.42,218.36,12.44320243]
[1733812916374,0.82541502,218.41,218.36,12.44320243]
[1733812917873,20.0,218.39,218.36,12.44320243]
[1733812918177,0.82541502,218.38,218.36,12.44320243]
[1733812919778,1.6094,218.37,218.36,12.44320243]
[1733812923510,1.6094,218.37,218.36,10.77660243]
[1733812924586,1.6094,218.37,218.21,5.27748089]
[1733812924788,20.82541502,218.36,218.22,0.68720845]
[1733812925295,20.0,218.32,218.19,0.68722508]
[1733812925499,0.82541502,218.31,218.19,5.96470597]
[1733812925998,0.82541502,218.31,218.2,5.27748089]
[1733812926199,0.82541502,218.31,218.21,0.68722686]
[1733812926502,0.82541502,218.31,218.21,312.0]
[1733812926881,0.82541502,218.31,218.18,5.27748089]
[1733812927103,0.82541502,218.31,218.19,0.68727281]
[1733812927298,1.6094,218.3,218.19,0.68727281]
[1733812927490,0.82541502,218.29,218.18,5.27748089]
[1733812927690,0.82541502,218.29,218.17,5.27748089]
[1733812927999,0.82541502,218.29,218.18,0.6872995]
[1733812929887,0.82541502,218.29,218.19,312.0]
[1733812940827,20.0,218.21,218.15,0.5646164]
[1733812941120,1.57874156,218.2,218.15,0.5646164]
[1733812942218,0.82541502,218.23,218.15,0.5646164]
[1733812942391,8.1142,218.24,218.15,0.5646164]
[1733812942789,8.1142,218.24,218.16,0.68737839]
[1733812943803,8.1142,218.24,218.16,312.0]
[1733812945103,0.82541502,218.23,218.16,312.0]
[1733812945305,1.5583,218.24,218.17,24.46430204]
[1733812946407,1.5583,218.24,218.15,1.25193728]
[1733812946795,0.82541502,218.23,218.15,1.25193728]
[1733812947501,0.82541502,218.23,218.15,0.5646164]
[1733812948019,1.5583,218.24,218.15,0.5646164]
[1733812948318,1.5583,218.24,218.16,312.68738983]
[1733812948526,1.5583,218.24,218.16,317.27748089]
[1733812948817,1.5583,218.24,218.17,5.27748089]
[1733812949017,1.5583,218.24,218.18,0.6872565]
[1733812949908,1.5583,218.24,218.15,0.5646164]
[1733812950110,1.5583,218.24,218.15,1.2519837]
[1733812950304,0.82541502,218.23,218.15,1.2519837]
[1733812950502,1.5583,218.24,218.15,1.2519837]
[1733812950800,1.5583,218.24,218.16,23.776884]
[1733812951895,1.5583,218.24,218.17,0.68732145]
[1733812953691,1.5583,218.24,218.16,23.776884]
[1733812954319,0.82541502,218.23,218.15,0.5646164]
[1733812955030,1.5583,218.24,218.15,0.5646164]
[1733812955399,1.5583,218.24,218.16,0.68739837]
[1733812955996,1.5583,218.24,218.17,23.776884]
[1733812956208,8.1037,218.29,218.19,29.05436489]
[1733812956403,8.1037,218.29,218.21,29.05436489]
[1733812956603,1.5478,218.29,218.22,5.96462175]
[1733812956812,1.5478,218.29,218.22,0.68714086]
[1733812957300,1.5478,218.29,218.18,0.68720084]
[1733812957897,0.82541502,218.28,218.18,0.68720084]
[1733812958726,1.5478,218.29,218.18,0.68720084]
[1733812958727,1.5478,218.29,218.2,5.27748089]
[1733812958939,1.5478,218.29,218.21,0.68717503]
[1733812961240,0.82541502,218.28,218.21,0.68717503]
[1733812961553,0.82541502,218.28,218.19,0.68727309]
[1733812962615,6.4895,218.27,218.16,23.776884]
[1733812962920,0.82541502,218.26,218.15,0.5646164]
[1733812963227,20.0,218.24,218.15,0.5646164]
[1733812963421,0.82541502,218.23,218.15,0.5646164]
[1733812963743,1.5798,218.22,218.15,0.5646164]
[1733812963924,0.82541502,218.21,218.15,0.5646164]
[1733812964120,6.4895,218.2,218.15,0.5646164]
[1733812964322,0.82541502,218.19,218.15,0.5646164]
[1733812964535,20.0,218.17,218.15,0.5646164]
[1733812964935,6.4895,218.2,218.15,0.5646164]
[1733812965407,0.82541502,218.19,218.15,0.5646164]
[1733812965612,6.4895,218.2,218.15,0.5646164]
[1733812965848,0.82541502,218.19,218.15,0.5646164]
[1733812969426,20.0,218.17,218.15,0.5646164]
[1733812969637,0.82541502,218.16,218.15,0.5646164]
[1733812974839,20.0,218.17,218.15,0.5646164]
[1733812978628,0.82541502,218.19,218.15,0.5646164]
[1733812978836,20.0,218.17,218.15,0.5646164]
[1733812979456,0.82541502,218.16,218.15,0.5646164]
[1733812982446,0.82541502,218.16,218.02,0.68764595]
[1733812983150,0.82541502,218.16,218.02,312.68764595]
[1733812983341,0.82541502,218.16,218.02,312.0]
[1733812983959,1.558,218.15,218.02,312.0]
[1733812984250,0.82541502,218.14,218.02,312.0]
[1733812987773,0.82541502,218.14,218.01,11.42379387]
[1733812987774,30.158084,218.13,217.93,0.5646164]
[1733812987937,20.0,218.1,217.94,0.68782103]
[1733812988135,20.0,218.06,217.93,5.85451027]
[1733812988355,0.82541502,218.05,217.93,5.85451027]
[1733812989256,1.558,218.08,217.93,5.85451027]
[1733812989552,0.82541502,218.07,217.94,5.97797681]
[1733812989945,0.82541502,218.07,217.94,0.68808294]
[1733812990146,0.82541502,218.07,217.93,5.85451027]
[1733812990540,0.82541502,218.07,217.93,0.5646164]
[1733812990860,0.82541502,218.07,217.94,312.0]
[1733812992945,8.0126,218.06,217.93,0.5646164]
[1733812993153,20.0,218.03,217.93,0.5646164]
[1733812993479,0.82541502,218.02,217.93,0.5646164]
[1733812995467,0.82541502,218.02,217.94,0.68816457]
[1733812995641,20.0,218.03,217.94,0.68816457]
[1733812995961,20.0,218.03,217.94,312.68816457]
[1733812996168,20.0,218.03,217.94,312.0]
[1733812996659,0.82541502,218.02,217.94,312.0]
[1733812997667,0.82541502,218.02,217.93,0.5646164]
[1733812999549,1.5655,218.01,217.93,0.5646164]
[1733812999746,0.82541502,218.0,217.93,0.5646164]
[1733813002773,1.5655,218.01,217.93,5.85451027]
[1733813003278,0.82541502,218.0,217.93,0.5646164]
[1733813013290,6.3096,217.99,217.93,0.5646164]
[1733813013583,0.82541502,217.98,217.93,0.5646164]
[1733813014685,20.0,217.96,217.93,0.5646164]
[1733813014848,0.82541502,217.95,217.93,0.5646164]
[1733813020078,6.3096,217.99,217.93,0.5646164]
[1733813020079,0.82541502,217.98,217.93,0.5646164]
[1733813021387,20.0,217.96,217.93,0.5646164]
[1733813021704,0.82541502,217.95,217.93,0.5646164]
[1733813022718,0.82541502,217.99,217.93,0.5646164]
[1733813023079,1.5655,218.01,217.93,0.5646164]
[1733813023278,1.5655,218.01,217.93,312.5646164]
[1733813023693,1.5655,218.01,217.93,0.5646164]
[1733813024291,0.82541502,218.03,217.94,0.6881394]
[1733813025511,20.0,218.01,217.94,0.6881394]
[1733813026078,0.82541502,218.0,217.93,0.5646164]
[1733813029090,21.5279,217.99,217.93,0.5646164]
[1733813029404,0.82541502,217.98,217.93,0.5646164]
[1733813033097,0.82541502,217.98,217.82,25.28989387]
[1733813033407,0.82541502,217.98,217.82,25.97828997]
[1733813033912,2.70605776,217.98,217.82,25.97828997]
[1733813034115,0.82541502,217.98,217.82,337.97828997]
[1733813034305,0.82541502,217.98,217.82,337.28989387]
[1733813034506,0.82541502,217.98,217.83,0.68838547]
[1733813036217,2.63092804,217.98,217.83,0.68838547]
[1733813036418,0.82541502,218.03,217.92,5.28989387]
[1733813036610,0.82541502,218.03,217.93,0.68807698]
[1733813037611,1.89061081,218.08,217.94,6.84589387]
[1733813037945,0.82541502,218.07,217.95,0.68797783]
[1733813038626,0.82541502,218.07,217.95,5.9778717]
[1733813038807,0.82541502,218.08,217.96,5.28989387]
[1733813039014,0.82541502,218.08,217.97,0.68798691]
[1733813039934,20.0,218.06,217.95,0.68798568]
[1733813040133,0.82541502,218.05,217.95,0.68798568]
[1733813040512,1.5279,218.1,217.97,5.28989387]
[1733813040706,1.5279,218.1,217.98,5.97777149]
[1733813040945,1.5279,218.1,218.01,5.28989387]
[1733813041150,8.46965271,218.14,218.02,0.68777719]
[1733813041151,0.82541502,218.12,218.02,0.68777719]
[1733813041347,0.82541502,218.13,218.02,0.68777719]
[1733813041640,1.5279,218.16,218.03,29.06677787]
[1733813041925,1.5279,218.16,218.04,0.68768558]
[1733813042423,0.82541502,218.15,218.04,0.68768558]
[1733813043451,1.5279,218.16,218.05,8.26354369]
[1733813043452,2.35331502,218.16,218.05,8.26354369]
[1733813043607,1.5279,218.16,218.07,8.26354369]
[1733813043807,0.82541502,218.19,218.08,0.68760938]
[1733813044720,0.82541502,218.19,218.08,312.68760938]
[1733813044926,0.82541502,218.19,218.08,312.0]
[1733813045513,20.0,218.17,218.08,320.26354369]
[1733813045712,20.0,218.17,218.08,312.0]
[1733813046109,20.0,218.17,218.09,0.68757749]
[1733813046518,1.5279,218.21,218.11,8.26354369]
[1733813046832,6.6231,218.25,218.15,8.26354369]
[1733813047007,6.6231,218.25,218.16,8.95088975]
[1733813047430,8.42319966,218.31,218.2,8.26354369]
[1733813047646,1.5279,218.33,218.23,8.26354369]
[1733813047809,2.35331502,218.33,218.24,0.68707572]
[1733813048010,1.5279,218.33,218.24,0.68707572]
[1733813048712,6.6231,218.36,218.26,32.04042769]
[1733813049009,6.6231,218.36,218.27,8.95052464]
[1733813049205,1.5279,218.39,218.28,32.04042769]
[1733813049430,1.5279,218.39,218.29,8.95044581]
[1733813049619,1.5279,218.39,218.29,320.95044581]
[1733813049926,1.5279,218.39,218.29,312.0]
[1733813050128,1.5279,218.39,218.29,320.26354369]
[1733813050631,0.82541502,218.38,218.29,312.0]
[1733813050929,20.82541502,218.38,218.29,312.0]
[1733813052128,20.82541502,218.38,218.24,8.26354369]
[1733813052442,20.82541502,218.38,218.2,23.776884]
[1733813052443,20.82541502,218.38,218.25,0.6870891]
[1733813053012,20.0,218.37,218.23,8.26354369]
[1733813053212,0.82541502,218.36,218.24,0.68711559]
[1733813054047,20.0,218.38,218.26,8.26354369]
[1733813054255,0.82541502,218.37,218.27,0.6870032]
[1733813056035,20.82541502,218.38,218.27,0.6870032]
[1733813057339,20.82541502,218.38,218.24,23.776884]
[1733813057550,20.82541502,218.38,218.25,0.68704675]
[1733813058226,20.82541502,218.38,218.25,8.95059044]
[1733813059548,20.82541502,218.38,218.25,0.68704675]
[1733813061828,20.82541502,218.38,218.23,0.6871169]
[1733813063445,20.82541502,218.38,218.23,8.95066059]
[1733813064429,20.82541502,218.38,218.24,8.26354369]
[1733813064730,20.82541502,218.38,218.25,0.68703786]
[1733813065734,20.82541502,218.38,218.23,0.68712009]
[1733813065947,20.82541502,218.38,218.23,8.95066378]
[1733813066969,20.82541502,218.38,218.24,8.26354369]
[1733813067263,1.5279,218.39,218.31,8.26354369]
[1733813067427,1.5279,218.39,218.28,20.0]
[1733813067428,1.5279,218.39,218.32,8.95034454]
[1733813068350,1.5279,218.39,218.32,320.95034454]
[1733813068559,1.5279,218.39,218.32,320.26354369]
[1733813069135,1.5279,218.39,218.32,312.0]
[1733813069641,1.5279,218.39,218.33,0.68681606]
[1733813070354,1.5279,218.39,218.29,0.6868174]
[1733813070555,1.5279,218.39,218.21,10.0]
[1733813070556,20.82541502,218.38,218.26,8.95046402]
[1733813070865,20.0,218.38,218.27,8.26354369]
[1733813071051,0.82541502,218.37,218.28,0.68697975]
[1733813072030,0.82541502,218.37,218.29,0.68698661]
[1733813072234,0.82541502,218.37,218.26,0.68698661]
[1733813073136,0.82541502,218.37,218.24,312.0]
[1733813073137,0.82541502,218.37,218.27,0.687034]
[1733813073738,0.82541502,218.37,218.21,8.26354369]
[1733813073939,0.82541502,218.37,218.22,0.68712146]
[1733813074957,2.63379861,218.37,218.22,0.68712146]
[1733813075645,2.63379861,218.37,218.22,8.95066515]
[1733813076766,0.82541502,218.37,218.26,320.26354369]
[1733813076941,0.82541502,218.37,218.27,8.95054091]
[1733813077147,0.82541502,218.38,218.27,8.95054091]
[1733813078457,20.82541502,218.38,218.27,8.95054091]
[1733813080448,20.82541502,218.38,218.27,0.68699722]
[1733813082987,20.82541502,218.38,218.27,312.68699722]
[1733813083165,20.82541502,218.38,218.27,312.0]
[1733813083552,20.82541502,218.38,218.23,23.776884]
[1733813083861,20.82541502,218.38,218.2,8.26354369]
[1733813084067,20.82541502,218.38,218.21,0.68712345]
[1733813084461,20.0,218.34,218.18,8.26354369]
[1733813084677,2.35891502,218.33,218.19,0.68721592]
[1733813086069,2.35891502,218.33,218.2,23.776884]
[1733813086457,2.35891502,218.33,218.19,0.68721592]
[1733813086666,2.35891502,218.33,218.19,312.0]
[1733813091887,4.20132305,218.33,218.19,312.0]
[1733813092696,2.35891502,218.33,218.21,8.26354369]
[1733813093005,2.35891502,218.33,218.22,0.68716233]
[1733813094300,2.35891502,218.33,218.19,8.26354369]
[1733813094478,2.35891502,218.33,218.18,23.776884]
[1733813094672,2.35891502,218.33,218.19,0.68725362]
[1733813095173,20.0,218.29,218.19,0.68725362]
[1733813095371,0.82541502,218.28,218.19,0.68725362]
[1733813095600,0.82541502,218.28,218.17,0.68730236]
[1733813096575,0.82541502,218.28,218.17,8.95084605]
[1733813098399,0.82541502,218.28,218.17,0.68730236]
[1733813099281,0.82541502,218.28,218.17,312.68730236]